[Event "*** Titled Tuesday Blitz"]
[Site "Chess.com"]
[Date "2020.12.29"]
[Round "2"]
[White "ajkom197"]
[Black "ODreamchess"]
[Result "0-1"]
[WhiteElo "2400"]
[BlackElo "2675"]
[TimeControl "180+1"]
[EndTime "10:20:05 PST"]
[Termination "ODreamchess won by resignation"]

1. d4 {[%clk 0:03:00.9]} 1... Nf6 {[%clk 0:02:59.5]} 2. Nf3 {[%clk 0:03:01.1]}
2... g6 {[%clk 0:03:00.4]} 3. Bf4 {[%clk 0:03:00.6]} 3... Bg7 {[%clk 0:03:01.3]}
4. e3 {[%clk 0:03:01]} 4... O-O {[%clk 0:03:02.2]} 5. Nbd2 {[%clk 0:02:59.6]}
5... b6 {[%clk 0:03:02.5]} 6. Be2 {[%clk 0:02:59.1]} 6... Bb7 {[%clk 0:03:02.9]}
7. h3 {[%clk 0:02:57.8]} 7... Ne4 {[%clk 0:03:02.9]} 8. Nxe4 {[%clk 0:02:57.4]}
8... Bxe4 {[%clk 0:03:03.8]} 9. O-O {[%clk 0:02:57]} 9... d6 {[%clk 0:03:03.1]}
10. Nd2 {[%clk 0:02:56.5]} 10... Bb7 {[%clk 0:03:03.1]} 11. Bh2 {[%clk
0:02:55.9]} 11... Nd7 {[%clk 0:03:02.5]} 12. Bf3 {[%clk 0:02:54.7]} 12... Qc8
{[%clk 0:03:02.4]} 13. a4 {[%clk 0:02:52.7]} 13... a6 {[%clk 0:03:01.7]} 14. c3
{[%clk 0:02:52.5]} 14... Re8 {[%clk 0:03:00.9]} 15. b4 {[%clk 0:02:52.3]} 15...
e5 {[%clk 0:03:00.9]} 16. Qb3 {[%clk 0:02:50.6]} 16... a5 {[%clk 0:02:21.2]} 17.
bxa5 {[%clk 0:02:39.8]} 17... Rxa5 {[%clk 0:02:19.6]} 18. Bxb7 {[%clk
0:02:39.2]} 18... Qxb7 {[%clk 0:02:17.7]} 19. Nc4 {[%clk 0:02:39.8]} 19... Ra7
{[%clk 0:02:09.7]} 20. dxe5 {[%clk 0:02:36.2]} 20... Bxe5 {[%clk 0:02:06.8]} 21.
Bxe5 {[%clk 0:02:35]} 21... Nxe5 {[%clk 0:02:04.8]} 22. Nxe5 {[%clk 0:02:34.7]}
22... Rxe5 {[%clk 0:02:05.7]} 23. Rfd1 {[%clk 0:02:17.7]} 23... Rg5 {[%clk
0:01:59.7]} 24. g3 {[%clk 0:02:17.7]} 24... h5 {[%clk 0:01:53.6]} 25. h4 {[%clk
0:02:17.8]} 25... Rga5 {[%clk 0:01:49.8]} 26. Rd4 {[%clk 0:02:16.1]} 26... Qc6
{[%clk 0:01:47.8]} 27. Ra2 {[%clk 0:02:02.8]} 27... Qd7 {[%clk 0:01:43.3]} 28.
Rb4 {[%clk 0:01:57.5]} 28... Rc5 {[%clk 0:01:40.5]} 29. Rd2 {[%clk 0:01:55.2]}
29... Qe6 {[%clk 0:01:34.8]} 30. c4 {[%clk 0:01:44.9]} 30... Qe4 {[%clk
0:01:22.6]} 31. Rd5 {[%clk 0:01:41.6]} 31... Ra8 {[%clk 0:01:07.5]} 32. Qd3
{[%clk 0:01:30.1]} 32... Qxd3 {[%clk 0:00:53.8]} 33. Rxd3 {[%clk 0:01:29.5]}
33... f6 {[%clk 0:00:54.7]} 34. Kg2 {[%clk 0:01:26.8]} 34... Kf7 {[%clk
0:00:49.2]} 35. e4 {[%clk 0:01:26.1]} 35... Ke6 {[%clk 0:00:43]} 36. f4 {[%clk
0:01:25.3]} 36... g5 {[%clk 0:00:38.9]} 37. hxg5 {[%clk 0:01:18.4]} 37... fxg5
{[%clk 0:00:37.6]} 38. Rd5 {[%clk 0:01:16.3]} 38... Rg8 {[%clk 0:00:21.7]} 39.
Kf3 {[%clk 0:01:14.3]} 39... gxf4 {[%clk 0:00:14.3]} 40. gxf4 {[%clk 0:01:14.1]}
40... h4 {[%clk 0:00:14.7]} 41. f5+ {[%clk 0:01:00.3]} 41... Kf6 {[%clk
0:00:14.5]} 42. Kf4 {[%clk 0:00:56.3]} 42... h3 {[%clk 0:00:12.5]} 43. Rb3
{[%clk 0:00:38.4]} 43... Rh8 {[%clk 0:00:08.7]} 44. Rxc5 {[%clk 0:00:32.4]}
44... h2 {[%clk 0:00:08.8]} 45. Rb1 {[%clk 0:00:31.8]} 45... bxc5 {[%clk
0:00:06.1]} 46. Rh1 {[%clk 0:00:31.4]} 46... Rh4+ {[%clk 0:00:06.1]} 47. Kf3
{[%clk 0:00:20]} 47... Ke5 {[%clk 0:00:05.7]} 48. a5 {[%clk 0:00:20]} 48... Rf4+
{[%clk 0:00:04.7]} 49. Kg3 {[%clk 0:00:19.8]} 49... Rxe4 {[%clk 0:00:05]} 50.
Rxh2 {[%clk 0:00:20.2]} 50... Rxc4 {[%clk 0:00:04.9]} 51. Ra2 {[%clk 0:00:19.7]}
51... Rb4 {[%clk 0:00:04.9]} 52. a6 {[%clk 0:00:19.9]} 52... Rb8 {[%clk
0:00:04.7]} 53. a7 {[%clk 0:00:20.5]} 53... Rg8+ {[%clk 0:00:03.8]} 54. Kh4
{[%clk 0:00:20.3]} 54... Ra8 {[%clk 0:00:04.3]} 55. Kg5 {[%clk 0:00:20.5]} 55...
c4 {[%clk 0:00:04.7]} 56. f6 {[%clk 0:00:20.5]} 56... Ke6 {[%clk 0:00:04.9]} 57.
Kg6 {[%clk 0:00:20.5]} 57... d5 {[%clk 0:00:05.3]} 58. f7 {[%clk 0:00:20.3]}
58... c3 {[%clk 0:00:05.2]} 59. Re2+ {[%clk 0:00:16.1]} 59... Kd7 {[%clk
0:00:04.1]} 60. Re8 {[%clk 0:00:16.6]} 60... Rxa7 {[%clk 0:00:03.6]} 61. f8=Q
{[%clk 0:00:16.3]} 61... Ra6+ {[%clk 0:00:04.5]} 62. Kf5 {[%clk 0:00:16]} 62...
Rd6 {[%clk 0:00:05]} 63. Qe7+ {[%clk 0:00:16]} 63... Kc6 {[%clk 0:00:05.9]} 64.
Qe3 {[%clk 0:00:15.5]} 64... d4 {[%clk 0:00:06.8]} 65. Qd3 {[%clk 0:00:15.6]}
65... Kc5 {[%clk 0:00:07.3]} 66. Re5+ {[%clk 0:00:15.6]} 66... Kb6 {[%clk
0:00:07.3]} 67. Ke4 {[%clk 0:00:15.8]} 67... c5 {[%clk 0:00:07.3]} 68. Rd5
{[%clk 0:00:12.3]} 68... Rc6 {[%clk 0:00:08.2]} 69. Rd8 {[%clk 0:00:10.4]} 69...
Kc7 {[%clk 0:00:07.8]} 70. Ra8 {[%clk 0:00:09.8]} 70... Re6+ {[%clk 0:00:07.6]}
71. Kd5 {[%clk 0:00:09.8]} 71... Rc6 {[%clk 0:00:06.9]} 72. Qa6 {[%clk
0:00:08.6]} 72... Rxa6 {[%clk 0:00:06.7]} 73. Rxa6 {[%clk 0:00:08.1]} 73... c2
{[%clk 0:00:07.6]} 74. Rc6+ {[%clk 0:00:08.2]} 74... Kd7 {[%clk 0:00:07.8]} 75.
Rxc5 {[%clk 0:00:08.6]} 75... d3 {[%clk 0:00:08.2]} 76. Ke4 {[%clk 0:00:04.4]}
76... d2 {[%clk 0:00:08]} 77. Rxc2 {[%clk 0:00:04.3]} 77... d1=Q {[%clk
0:00:08.3]} 78. Rc4 {[%clk 0:00:04.7]} 78... Ke6 {[%clk 0:00:08.2]} 79. Rd4
{[%clk 0:00:04.3]} 79... Qe2+ {[%clk 0:00:07.8]} 0-1

[Event "*** Titled Tuesday Blitz"]
[Site "Chess.com"]
[Date "2020.12.29"]
[Round "2"]
[White "Mischuk_D"]
[Black "alexg2003"]
[Result "1/2-1/2"]
[WhiteElo "2658"]
[BlackElo "2398"]
[TimeControl "180+1"]
[EndTime "10:20:06 PST"]
[Termination "Game drawn by repetition"]

1. e4 {[%clk 0:03:00.9]} 1... e6 {[%clk 0:03:00.2]} 2. d4 {[%clk 0:03:00.4]}
2... d5 {[%clk 0:03:00.6]} 3. Nc3 {[%clk 0:02:57.8]} 3... dxe4 {[%clk
0:03:00.8]} 4. Nxe4 {[%clk 0:02:56.3]} 4... Bd7 {[%clk 0:03:01.1]} 5. Nf3 {[%clk
0:02:55.4]} 5... Bc6 {[%clk 0:03:01.2]} 6. Bd3 {[%clk 0:02:55.8]} 6... Nd7
{[%clk 0:03:00.7]} 7. O-O {[%clk 0:02:54.5]} 7... Ngf6 {[%clk 0:02:59.7]} 8. Qe2
{[%clk 0:02:49.2]} 8... Nxe4 {[%clk 0:02:36.4]} 9. Bxe4 {[%clk 0:02:49]} 9...
Bxe4 {[%clk 0:02:36.4]} 10. Qxe4 {[%clk 0:02:49.9]} 10... c6 {[%clk 0:02:36.9]}
11. Bf4 {[%clk 0:02:45.6]} 11... Be7 {[%clk 0:02:35.3]} 12. Rad1 {[%clk
0:02:43.1]} 12... O-O {[%clk 0:02:34.4]} 13. c3 {[%clk 0:02:41.4]} 13... Qa5
{[%clk 0:02:28.5]} 14. a3 {[%clk 0:02:40.7]} 14... Qb5 {[%clk 0:02:24.7]} 15.
Qc2 {[%clk 0:02:40.4]} 15... Bf6 {[%clk 0:02:14.6]} 16. Rfe1 {[%clk 0:02:39]}
16... Rfd8 {[%clk 0:02:10.5]} 17. h4 {[%clk 0:02:35.8]} 17... g6 {[%clk
0:02:03.8]} 18. Bg5 {[%clk 0:02:34.9]} 18... Qf5 {[%clk 0:02:02.3]} 19. Qxf5
{[%clk 0:02:31.9]} 19... gxf5 {[%clk 0:02:01.4]} 20. g3 {[%clk 0:02:29]} 20...
Kg7 {[%clk 0:01:56.8]} 21. Kg2 {[%clk 0:02:27.8]} 21... h6 {[%clk 0:01:56.9]}
22. Bxf6+ {[%clk 0:02:25.3]} 22... Nxf6 {[%clk 0:01:57]} 23. Ne5 {[%clk
0:02:25.1]} 23... a5 {[%clk 0:01:49.2]} 24. a4 {[%clk 0:02:23.6]} 24... h5
{[%clk 0:01:31.2]} 25. Nc4 {[%clk 0:02:22.2]} 25... Nd5 {[%clk 0:01:30]} 26. Kf3
{[%clk 0:02:15.7]} 26... Kf6 {[%clk 0:01:29.5]} 27. Rd2 {[%clk 0:02:08]} 27...
b5 {[%clk 0:01:21.5]} 28. Ne5 {[%clk 0:02:07]} 28... Rdc8 {[%clk 0:01:17.1]} 29.
Nd7+ {[%clk 0:02:05.3]} 29... Ke7 {[%clk 0:01:16.1]} 30. Nc5 {[%clk 0:02:06.2]}
30... Rcb8 {[%clk 0:01:09.3]} 31. Re5 {[%clk 0:01:58.1]} 31... Kd6 {[%clk
0:00:54.3]} 32. Re1 {[%clk 0:01:48.7]} 32... Nb6 {[%clk 0:00:52.7]} 33. axb5
{[%clk 0:01:46.2]} 33... cxb5 {[%clk 0:00:52.2]} 34. Ra1 {[%clk 0:01:43.8]}
34... a4 {[%clk 0:00:52.4]} 35. Nd3 {[%clk 0:01:43.1]} 35... Nc4 {[%clk
0:00:51.9]} 36. Re2 {[%clk 0:01:42.7]} 36... f6 {[%clk 0:00:50.3]} 37. Nf4
{[%clk 0:01:36.3]} 37... e5 {[%clk 0:00:47.4]} 38. dxe5+ {[%clk 0:01:36.3]}
38... fxe5 {[%clk 0:00:47.6]} 39. Rd1+ {[%clk 0:01:34.6]} 39... Kc6 {[%clk
0:00:47.2]} 40. Nxh5 {[%clk 0:01:34.5]} 40... Rd8 {[%clk 0:00:40.1]} 41. Ra1
{[%clk 0:01:17.6]} 41... Rd3+ {[%clk 0:00:37.9]} 42. Kg2 {[%clk 0:01:17.5]}
42... Rf8 {[%clk 0:00:34.2]} 43. Ng7 {[%clk 0:01:10.3]} 43... Kd5 {[%clk
0:00:30.9]} 44. h5 {[%clk 0:01:08.8]} 44... f4 {[%clk 0:00:29.8]} 45. gxf4
{[%clk 0:00:56.8]} 45... exf4 {[%clk 0:00:23]} 46. f3 {[%clk 0:00:53.6]} 46...
Ne3+ {[%clk 0:00:21.3]} 47. Kf2 {[%clk 0:00:53.4]} 47... Rh8 {[%clk 0:00:12.8]}
48. Rh1 {[%clk 0:00:50.3]} 48... Ke5 {[%clk 0:00:12.1]} 49. h6 {[%clk
0:00:48.9]} 49... Kf6 {[%clk 0:00:12.3]} 50. Nh5+ {[%clk 0:00:45.2]} 50... Kg5
{[%clk 0:00:12.7]} 51. Ng7 {[%clk 0:00:42.3]} 51... Rxh6 {[%clk 0:00:11.8]} 52.
Rxh6 {[%clk 0:00:40.2]} 52... Kxh6 {[%clk 0:00:12.7]} 53. Ne6 {[%clk 0:00:40.9]}
53... Nd1+ {[%clk 0:00:12.3]} 54. Ke1 {[%clk 0:00:40.7]} 54... Nxc3 {[%clk
0:00:10.8]} 55. bxc3 {[%clk 0:00:40.2]} 55... Rxc3 {[%clk 0:00:11.3]} 56. Nxf4
{[%clk 0:00:40.3]} 56... Rxf3 {[%clk 0:00:11.5]} 57. Nd5 {[%clk 0:00:37.8]}
57... Rd3 {[%clk 0:00:11.6]} 58. Nb4 {[%clk 0:00:34.9]} 58... Rb3 {[%clk
0:00:11.9]} 59. Re4 {[%clk 0:00:32.5]} 59... Kg5 {[%clk 0:00:11.7]} 60. Kd2
{[%clk 0:00:32.5]} 60... Kf5 {[%clk 0:00:12.2]} 61. Rh4 {[%clk 0:00:32.7]} 61...
Ke5 {[%clk 0:00:12.7]} 62. Kc2 {[%clk 0:00:32.7]} 62... Kd6 {[%clk 0:00:12.9]}
63. Nd3 {[%clk 0:00:32.1]} 63... Kc6 {[%clk 0:00:12.7]} 64. Rh6+ {[%clk
0:00:31.1]} 64... Kd5 {[%clk 0:00:12.7]} 65. Nc1 {[%clk 0:00:29.1]} 65... Rg3
{[%clk 0:00:11.2]} 66. Ne2 {[%clk 0:00:28.4]} 66... Rg2 {[%clk 0:00:10.7]} 67.
Kd3 {[%clk 0:00:28.8]} 67... Kc5 {[%clk 0:00:11.2]} 68. Rh4 {[%clk 0:00:26.5]}
68... Kb6 {[%clk 0:00:11.3]} 69. Nd4 {[%clk 0:00:24.6]} 69... Ka5 {[%clk
0:00:12]} 70. Rh5 {[%clk 0:00:24.6]} 70... Rg3+ {[%clk 0:00:12.6]} 71. Kc2
{[%clk 0:00:24.7]} 71... Rg2+ {[%clk 0:00:12.7]} 72. Kc1 {[%clk 0:00:24.8]}
72... Rg1+ {[%clk 0:00:13.1]} 73. Kd2 {[%clk 0:00:25.1]} 73... Rg2+ {[%clk
0:00:13.6]} 74. Ke3 {[%clk 0:00:25.3]} 74... Rb2 {[%clk 0:00:14]} 75. Rh4 {[%clk
0:00:22]} 75... a3 {[%clk 0:00:14.2]} 76. Rh8 {[%clk 0:00:21.7]} 76... Kb4
{[%clk 0:00:13.7]} 77. Ra8 {[%clk 0:00:21]} 77... a2 {[%clk 0:00:13.9]} 78. Kd3
{[%clk 0:00:20.8]} 78... Kc5 {[%clk 0:00:12.8]} 79. Kc3 {[%clk 0:00:18.9]} 79...
Rb1 {[%clk 0:00:11.7]} 80. Rxa2 {[%clk 0:00:17.4]} 80... b4+ {[%clk 0:00:12]}
81. Kd3 {[%clk 0:00:14.5]} 81... Rd1+ {[%clk 0:00:12.2]} 82. Kc2 {[%clk
0:00:14.6]} 82... Rxd4 {[%clk 0:00:12.8]} 83. Ra8 {[%clk 0:00:14.9]} 83... Kc4
{[%clk 0:00:13.6]} 84. Rc8+ {[%clk 0:00:14.5]} 84... Kb5 {[%clk 0:00:14.2]} 85.
Rh8 {[%clk 0:00:13.7]} 85... Rg4 {[%clk 0:00:14.2]} 86. Rb8+ {[%clk 0:00:13.1]}
86... Kc4 {[%clk 0:00:14.6]} 87. Rc8+ {[%clk 0:00:13.4]} 87... Kb5 {[%clk
0:00:15]} 88. Rb8+ {[%clk 0:00:13.6]} 88... Kc4 {[%clk 0:00:15.4]} 89. Rc8+
{[%clk 0:00:13.4]} 89... Kb5 {[%clk 0:00:15.9]} 90. Rb8+ {[%clk 0:00:13.6]}
1/2-1/2

[Event "*** Titled Tuesday Blitz"]
[Site "Chess.com"]
[Date "2020.12.29"]
[Round "2"]
[White "ClydeHillKid"]
[Black "elohunter1999"]
[Result "0-1"]
[WhiteElo "2380"]
[BlackElo "2697"]
[TimeControl "180+1"]
[EndTime "10:20:06 PST"]
[Termination "elohunter1999 won by resignation"]

1. e4 {[%clk 0:03:00.9]} 1... c5 {[%clk 0:02:57.3]} 2. Nf3 {[%clk 0:03:00.5]}
2... d6 {[%clk 0:02:56.6]} 3. d4 {[%clk 0:03:00.6]} 3... cxd4 {[%clk 0:02:57.5]}
4. Nxd4 {[%clk 0:03:01.5]} 4... Nf6 {[%clk 0:02:57.5]} 5. Nc3 {[%clk 0:03:01]}
5... g6 {[%clk 0:02:55.1]} 6. Be3 {[%clk 0:03:00]} 6... Bg7 {[%clk 0:02:54.5]}
7. f3 {[%clk 0:03:00.1]} 7... O-O {[%clk 0:02:54.2]} 8. Qd2 {[%clk 0:03:00.1]}
8... Nc6 {[%clk 0:02:54.3]} 9. Bc4 {[%clk 0:02:58.9]} 9... Bd7 {[%clk
0:02:52.8]} 10. O-O-O {[%clk 0:02:57.5]} 10... Rc8 {[%clk 0:02:48.9]} 11. Bb3
{[%clk 0:02:57.4]} 11... Ne5 {[%clk 0:02:48.4]} 12. Kb1 {[%clk 0:02:55.6]} 12...
Nc4 {[%clk 0:02:46.9]} 13. Bxc4 {[%clk 0:02:55.9]} 13... Rxc4 {[%clk 0:02:47.7]}
14. g4 {[%clk 0:02:56.6]} 14... b5 {[%clk 0:02:38.7]} 15. Ndxb5 {[%clk
0:02:56.6]} 15... Qa5 {[%clk 0:02:34.5]} 16. Nd4 {[%clk 0:02:39.7]} 16... Rfc8
{[%clk 0:02:27.2]} 17. Nb3 {[%clk 0:02:37.8]} 17... Qc7 {[%clk 0:02:25.3]} 18.
g5 {[%clk 0:02:34.9]} 18... Nh5 {[%clk 0:02:22.1]} 19. Nd5 {[%clk 0:02:35]}
19... Qd8 {[%clk 0:02:16.8]} 20. c3 {[%clk 0:02:22.6]} 20... a5 {[%clk
0:02:14.5]} 21. Bb6 {[%clk 0:02:22.1]} 21... Qf8 {[%clk 0:01:51.4]} 22. Nxa5
{[%clk 0:02:15.3]} 22... Ra4 {[%clk 0:01:49.1]} 23. Nb3 {[%clk 0:02:00.6]} 23...
Bb5 {[%clk 0:01:42.1]} 24. Bd4 {[%clk 0:01:54.1]} 24... Qd8 {[%clk 0:01:10.2]}
25. Nb6 {[%clk 0:01:21.1]} 25... Bxd4 {[%clk 0:01:06.1]} 26. Nxc8 {[%clk
0:01:21.2]} 26... Be5 {[%clk 0:00:57.2]} 27. Nc5 {[%clk 0:01:11]} 27... Qxc8
{[%clk 0:00:46.4]} 28. Nxa4 {[%clk 0:01:10.6]} 28... Bxa4 {[%clk 0:00:47.3]} 29.
b3 {[%clk 0:01:09.4]} 29... Bd7 {[%clk 0:00:39.1]} 30. Kb2 {[%clk 0:01:03]}
30... Nf4 {[%clk 0:00:37.9]} 31. h4 {[%clk 0:00:50.8]} 31... Ne2 {[%clk
0:00:37.5]} 32. Rc1 {[%clk 0:00:36.6]} 32... Nxc1 {[%clk 0:00:37.5]} 33. Rxc1
{[%clk 0:00:37.3]} 33... Qa6 {[%clk 0:00:37]} 34. Rd1 {[%clk 0:00:32.8]} 34...
Be6 {[%clk 0:00:34.6]} 35. Qd3 {[%clk 0:00:31.5]} 35... Qb6 {[%clk 0:00:33.5]}
36. Qd2 {[%clk 0:00:27]} 36... Qc5 {[%clk 0:00:31.1]} 37. f4 {[%clk 0:00:24.7]}
37... Bg7 {[%clk 0:00:29.9]} 38. Re1 {[%clk 0:00:23.8]} 38... Qc7 {[%clk
0:00:23]} 39. Qe3 {[%clk 0:00:22.3]} 39... Qa5 {[%clk 0:00:22.3]} 40. Rc1 {[%clk
0:00:20.9]} 40... h5 {[%clk 0:00:19.9]} 41. Rd1 {[%clk 0:00:19.4]} 41... Qa6
{[%clk 0:00:14.7]} 42. Re1 {[%clk 0:00:18.6]} 42... Kh7 {[%clk 0:00:14.3]} 43.
Re2 {[%clk 0:00:17.8]} 43... Bg4 {[%clk 0:00:14.4]} 44. Re1 {[%clk 0:00:17.8]}
44... Qb5 {[%clk 0:00:14]} 45. Rc1 {[%clk 0:00:16.4]} 45... e5 {[%clk
0:00:10.9]} 46. f5 {[%clk 0:00:07.6]} 46... gxf5 {[%clk 0:00:10.5]} 47. Rf1
{[%clk 0:00:05.6]} 47... f4 {[%clk 0:00:09.4]} 48. Qf2 {[%clk 0:00:04.3]} 48...
Qc6 {[%clk 0:00:07.7]} 49. Re1 {[%clk 0:00:04.3]} 49... d5 {[%clk 0:00:07.5]}
50. exd5 {[%clk 0:00:03.9]} 50... Qxd5 {[%clk 0:00:08.4]} 51. Qc2+ {[%clk
0:00:02.7]} 51... Kg8 {[%clk 0:00:06.4]} 52. Qe4 {[%clk 0:00:02.5]} 52... Qxe4
{[%clk 0:00:06.1]} 53. Rxe4 {[%clk 0:00:03.4]} 53... Bf3 {[%clk 0:00:06.9]} 54.
Re1 {[%clk 0:00:03.5]} 54... e4 {[%clk 0:00:07.3]} 55. Kc2 {[%clk 0:00:03.8]}
55... e3 {[%clk 0:00:07.6]} 56. Kd3 {[%clk 0:00:03.9]} 56... Bg4 {[%clk
0:00:07.5]} 57. Ke4 {[%clk 0:00:03.9]} 57... Bc8 {[%clk 0:00:07.1]} 58. Kxf4
{[%clk 0:00:04.2]} 58... Bxc3 {[%clk 0:00:05.7]} 59. Rxe3 {[%clk 0:00:03.1]}
59... Bd2 {[%clk 0:00:05.6]} 60. Kf3 {[%clk 0:00:03.2]} 60... Bxe3 {[%clk
0:00:06.5]} 61. Kxe3 {[%clk 0:00:04.1]} 61... Kg7 {[%clk 0:00:07]} 62. Kf4
{[%clk 0:00:04.7]} 62... Kg6 {[%clk 0:00:07.4]} 63. Ke5 {[%clk 0:00:05.1]} 63...
Bb7 {[%clk 0:00:06.4]} 64. a4 {[%clk 0:00:04.1]} 64... Bf3 {[%clk 0:00:06.8]}
65. a5 {[%clk 0:00:04]} 65... Bd1 {[%clk 0:00:07]} 66. a6 {[%clk 0:00:01.6]}
66... Bf3 {[%clk 0:00:07.1]} 67. b4 {[%clk 0:00:02]} 67... Bg2 {[%clk
0:00:07.1]} 68. b5 {[%clk 0:00:02.5]} 68... Bf1 {[%clk 0:00:07.4]} 69. b6 {[%clk
0:00:03.1]} 69... Bxa6 {[%clk 0:00:06.5]} 70. Kd6 {[%clk 0:00:02.4]} 70... Kf5
{[%clk 0:00:06.9]} 71. Ke7 {[%clk 0:00:02.5]} 71... Kg6 {[%clk 0:00:03.2]} 72.
Kd6 {[%clk 0:00:02.5]} 72... f6 {[%clk 0:00:03.7]} 73. gxf6 {[%clk 0:00:02]}
73... Kxf6 {[%clk 0:00:04.6]} 74. Kd5 {[%clk 0:00:01.4]} 74... Kf5 {[%clk
0:00:04.8]} 75. Kd4 {[%clk 0:00:01.9]} 75... Kg4 {[%clk 0:00:05.1]} 76. Ke4
{[%clk 0:00:02.1]} 76... Kxh4 {[%clk 0:00:05.5]} 77. Kf4 {[%clk 0:00:02.7]}
77... Kh3 {[%clk 0:00:05.9]} 78. Kf3 {[%clk 0:00:02.9]} 78... h4 {[%clk
0:00:06.5]} 79. Kf2 {[%clk 0:00:03.4]} 79... Kh2 {[%clk 0:00:06.8]} 80. Kf3
{[%clk 0:00:03]} 80... Bb7+ {[%clk 0:00:07.7]} 81. Kf2 {[%clk 0:00:03.3]} 81...
h3 {[%clk 0:00:08.1]} 82. Kf1 {[%clk 0:00:03.6]} 82... Kg3 {[%clk 0:00:09]} 83.
Kg1 {[%clk 0:00:04]} 83... h2+ {[%clk 0:00:09.9]} 84. Kf1 {[%clk 0:00:04.1]}
84... h1=Q+ {[%clk 0:00:10.8]} 85. Ke2 {[%clk 0:00:05]} 85... Qc6 {[%clk
0:00:10.1]} 86. Kd3 {[%clk 0:00:05.9]} 0-1

[Event "*** Titled Tuesday Blitz"]
[Site "Chess.com"]
[Date "2020.12.29"]
[Round "2"]
[White "ExtremeLearner"]
[Black "nubair1198"]
[Result "1/2-1/2"]
[WhiteElo "2356"]
[BlackElo "2739"]
[TimeControl "180+1"]
[EndTime "10:20:06 PST"]
[Termination "Game drawn by repetition"]

1. d4 {[%clk 0:03:00.9]} 1... d5 {[%clk 0:02:57.9]} 2. Nf3 {[%clk 0:03:00.6]}
2... Nf6 {[%clk 0:02:57.5]} 3. g3 {[%clk 0:03:00.9]} 3... Bf5 {[%clk 0:02:56.7]}
4. Bg2 {[%clk 0:02:59.4]} 4... e6 {[%clk 0:02:57.1]} 5. c4 {[%clk 0:02:59.5]}
5... c6 {[%clk 0:02:56.5]} 6. Nc3 {[%clk 0:02:58.2]} 6... Nbd7 {[%clk
0:02:54.9]} 7. Qb3 {[%clk 0:02:56.5]} 7... Qb6 {[%clk 0:02:44]} 8. c5 {[%clk
0:02:56.2]} 8... Qxb3 {[%clk 0:02:44.1]} 9. axb3 {[%clk 0:02:56.3]} 9... a6
{[%clk 0:02:41.5]} 10. b4 {[%clk 0:02:46.2]} 10... Rc8 {[%clk 0:02:36.4]} 11.
Bf4 {[%clk 0:02:41.7]} 11... h6 {[%clk 0:02:31.3]} 12. h4 {[%clk 0:02:29.1]}
12... Ne4 {[%clk 0:02:28.8]} 13. Nxe4 {[%clk 0:02:25.5]} 13... Bxe4 {[%clk
0:02:28.6]} 14. O-O {[%clk 0:02:21.5]} 14... Be7 {[%clk 0:02:28.3]} 15. Nd2
{[%clk 0:02:20.3]} 15... Bxg2 {[%clk 0:02:27]} 16. Kxg2 {[%clk 0:02:20.9]} 16...
g5 {[%clk 0:02:27.4]} 17. hxg5 {[%clk 0:02:20.7]} 17... hxg5 {[%clk 0:02:28.3]}
18. Be3 {[%clk 0:02:19.7]} 18... f5 {[%clk 0:02:28.2]} 19. Nb3 {[%clk
0:02:12.3]} 19... Kf7 {[%clk 0:02:15.8]} 20. Na5 {[%clk 0:02:01.7]} 20... Rb8
{[%clk 0:02:15.2]} 21. Rh1 {[%clk 0:01:48.4]} 21... Rxh1 {[%clk 0:02:13.6]} 22.
Rxh1 {[%clk 0:01:47.2]} 22... Kg6 {[%clk 0:02:13.9]} 23. f4 {[%clk 0:01:43.3]}
23... g4 {[%clk 0:02:11.9]} 24. Bd2 {[%clk 0:01:42.6]} 24... Bd8 {[%clk
0:02:11.6]} 25. Bc3 {[%clk 0:01:38]} 25... Bc7 {[%clk 0:01:52.2]} 26. e3 {[%clk
0:01:34.7]} 26... Nf6 {[%clk 0:01:52.1]} 27. Ra1 {[%clk 0:01:28.4]} 27... Ne4
{[%clk 0:01:48.9]} 28. Be1 {[%clk 0:01:28.1]} 28... Bxa5 {[%clk 0:01:44]} 29.
bxa5 {[%clk 0:01:26.3]} 29... Rh8 {[%clk 0:01:43.6]} 30. Ra4 {[%clk 0:01:24.5]}
30... Rh7 {[%clk 0:01:35.5]} 31. Rb4 {[%clk 0:01:24.4]} 31... Re7 {[%clk
0:01:34.3]} 32. Rb3 {[%clk 0:01:23.2]} 32... Kf7 {[%clk 0:01:33.8]} 33. Rb6
{[%clk 0:01:23]} 33... Ke8 {[%clk 0:01:33.8]} 34. Rb3 {[%clk 0:01:23.4]} 34...
Kd8 {[%clk 0:01:34.2]} 35. Rb4 {[%clk 0:01:19.5]} 35... Kc8 {[%clk 0:01:33.6]}
36. Rb3 {[%clk 0:01:20]} 36... Rh7 {[%clk 0:01:34.1]} 37. Rb4 {[%clk 0:01:20]}
37... Rh3 {[%clk 0:01:32.9]} 38. Rb3 {[%clk 0:01:20.5]} 38... Nf6 {[%clk
0:01:31.8]} 39. Rc3 {[%clk 0:01:15.2]} 39... Ne4 {[%clk 0:01:31.1]} 40. Rc1
{[%clk 0:01:14.9]} 40... Rh7 {[%clk 0:01:30.8]} 41. Ra1 {[%clk 0:01:13.5]} 41...
Nf6 {[%clk 0:01:25.4]} 42. Rc1 {[%clk 0:01:13.6]} 42... Ne8 {[%clk 0:01:25.8]}
43. Rc3 {[%clk 0:01:12.9]} 43... Nc7 {[%clk 0:01:26]} 44. Rb3 {[%clk 0:01:09.6]}
44... Nb5 {[%clk 0:01:26.3]} 45. Rxb5 {[%clk 0:01:01.5]} 45... cxb5 {[%clk
0:00:31.6]} 46. b4 {[%clk 0:00:44.7]} 46... Kd7 {[%clk 0:00:30.4]} 47. Bf2
{[%clk 0:00:41.7]} 47... Kc6 {[%clk 0:00:30.4]} 48. Be1 {[%clk 0:00:40.5]} 48...
Rh8 {[%clk 0:00:30.8]} 49. Bc3 {[%clk 0:00:32.9]} 49... Ra8 {[%clk 0:00:31.7]}
50. Bd2 {[%clk 0:00:15]} 50... Rh8 {[%clk 0:00:30.3]} 51. Bc3 {[%clk 0:00:14.9]}
51... Kd7 {[%clk 0:00:26.3]} 52. Bd2 {[%clk 0:00:14.4]} 52... Rc8 {[%clk
0:00:25.1]} 53. Bc3 {[%clk 0:00:14.9]} 53... Ra8 {[%clk 0:00:16.1]} 54. Bd2
{[%clk 0:00:15]} 54... Re8 {[%clk 0:00:14.4]} 55. Bc3 {[%clk 0:00:15.1]} 55...
Kc6 {[%clk 0:00:14.8]} 56. Bb2 {[%clk 0:00:14.1]} 56... b6 {[%clk 0:00:14.2]}
57. axb6 {[%clk 0:00:11.1]} 57... a5 {[%clk 0:00:09.8]} 58. bxa5 {[%clk
0:00:11.3]} 58... b4 {[%clk 0:00:08.7]} 59. a6 {[%clk 0:00:11.3]} 59... Kb5
{[%clk 0:00:06.9]} 60. a7 {[%clk 0:00:06.5]} 60... Kc6 {[%clk 0:00:06.9]} 61.
Kf2 {[%clk 0:00:04.2]} 61... Kb7 {[%clk 0:00:05.8]} 62. Bc1 {[%clk 0:00:03.9]}
62... Rh8 {[%clk 0:00:05.5]} 63. Kg2 {[%clk 0:00:04.1]} 63... Kc6 {[%clk
0:00:05.4]} 64. Bd2 {[%clk 0:00:04]} 64... b3 {[%clk 0:00:05.1]} 65. Bc3 {[%clk
0:00:04.5]} 65... Kb7 {[%clk 0:00:05.6]} 66. Bb2 {[%clk 0:00:05]} 66... Rc8
{[%clk 0:00:06]} 67. Kf2 {[%clk 0:00:04.8]} 67... Rh8 {[%clk 0:00:06.5]} 68. Kg2
{[%clk 0:00:02.4]} 68... Ra8 {[%clk 0:00:07]} 69. Kf2 {[%clk 0:00:02.6]} 69...
Rh8 {[%clk 0:00:07.6]} 70. Ke2 {[%clk 0:00:03.3]} 70... Rh2+ {[%clk 0:00:06.6]}
71. Kd3 {[%clk 0:00:03.9]} 71... Rc2 {[%clk 0:00:06.6]} 72. Bc3 {[%clk
0:00:02.3]} 72... Rc1 {[%clk 0:00:05.4]} 73. Bb2 {[%clk 0:00:01.7]} 73... Rc4
{[%clk 0:00:05.2]} 74. Bc3 {[%clk 0:00:02.3]} 74... Ka8 {[%clk 0:00:05.4]} 75.
Bb2 {[%clk 0:00:02.9]} 75... Kb7 {[%clk 0:00:05.4]} 76. Bc3 {[%clk 0:00:03.3]}
76... Ra4 {[%clk 0:00:05.7]} 77. Bb2 {[%clk 0:00:04]} 77... Rc4 {[%clk
0:00:06.2]} 1/2-1/2